Cogmind - Beta 11 *** ADVENTURER MODE // 2022.03.23 @ 00:30:05 Player: apollo Result: Destroyed by S-10 Pest with Light Assault Rifle Performance ------------- Evolutions (1) 500 Regions Visited (3) 600 Robots Destroyed (15) 75 Value Destroyed (446) 446 Prototype IDs (0) 0 Alien Tech Used (0) 0 Bonus (200) 200 TOTAL SCORE: 1821 Bonus ------- Pacifist 200 Cogmind --------- Core Integrity 0/400 Matter 300/300 Energy 125/125 System Corruption 0% Temperature Cool (0) Movement Core (750) Ox14 Location -9/Storage Parts ------- > --- POWER (3) -------- Light Ion Engine > --- PROPULSION (2) --- Light Treads > --- UTILITY (2) ------ Large Storage Unit Large Storage Unit > --- WEAPON (2) ------- Medium Laser > --- INVENTORY (15) --- Light Treads Aluminum Leg Peak State ------------ > --- POWER ------------ Improved Ion Engine > --- PROPULSION ------- Compact Wheel > --- UTILITY ---------- Large Storage Unit Large Storage Unit > --- WEAPON ----------- Light Assault Rifle Heavy Assault Rifle > --- INVENTORY -------- Light Ion Engine Light Treads Light Treads Aluminum Leg Aluminum Leg Medium Storage Unit Medium Laser Medium Laser Medium Laser Medium Laser [Rating: 9] Favorites ----------- Power Light Ion Engine Engine Light Ion Engine Propulsion Compact Wheel Treads Light Treads Leg Aluminum Leg Wheel Compact Wheel Utility Large Storage Unit Storage Large Storage Unit Weapon Medium Laser Energy Gun Medium Laser Ballistic Gun Heavy Assault Rifle Build | -11 -10 -9 -9 ------- Run | Scr Mat Mat Sto Slots Evolved 2 | . . 2 . Power 2 | . . 2 . Propulsion . | . . . . Utility . | . . . . Weapon . | . . . . Parts Attached 20 | 6 3 3 8 Power 3 | 1 . 1 1 Engine 3 | 1 . 1 1 Core . | . . . . Reactor . | . . . . Propulsion 7 | 2 . . 5 Treads 2 | . . . 2 Leg 2 | . . . 2 Wheel 3 | 2 . . 1 Hover . | . . . . Flight . | . . . . Utility 4 | 1 3 . . Device . | . . . . Storage 4 | 1 3 . . Processor . | . . . . Hackware . | . . . . Protection . | . . . . Artifact . | . . . . Weapon 6 | 2 . 2 2 Energy Gun 4 | 2 . . 2 Energy Cannon . | . . . . Ballistic Gun 2 | . . 2 . Ballistic Cannon . | . . . . Launcher . | . . . . Special Weapon . | . . . . Impact Weapon . | . . . . Slashing Weapon . | . . . . Piercing Weapon . | . . . . Special Melee Weapon . | . . . . Unidentified Prototypes . | . . . . Parts Lost 9 | . . 2 7 Power 2 | . . 1 1 Propulsion 4 | . . 1 3 Utility . | . . . . Weapon 3 | . . . 3 Highest Loss Streak 2 | . . 2 2 To Critical Strikes . | . . . . Average Slot Usage (%) 68 | . 86 64 56 Engine 7 | . 14 4 4 Treads 1 | . . . 4 Leg 1 | . . . 2 Wheel 15 | . 28 15 4 Storage 19 | . 15 22 22 Energy Gun 18 | . 28 13 13 Ballistic Gun 4 | . . 8 5 Naked Turns . | . . . . Heaviest Build 51 | 12 47 51 51 Greatest Support 26 | 26 26 26 20 Greatest Overweight (x) 15 | . 1 3 15 Average Overweight (x) . | . . 1 3 Largest Inventory Capacity 15 | 8 15 15 15 Average Capacity 12 | 6 8 15 15 Most Carried 10 | 6 10 10 10 Average Carried 6 | 3 7 9 4 Final Capacity 15 | 8 15 15 15 Final Carried 10 | 6 10 10 2 Class Distribution -------------------- 100% | Mutant Dominant Class ---------------- Mutant | -10/Materials Mutant | -9/Materials Mutant | -9/Storage Resources | -11 -10 -9 -9 ----------- Run | Scr Mat Mat Sto Matter Collected 424 | 250 . 66 108 Remotely . | . . . . Salvage Created 563 | . . 277 286 Parts 25 | . . 10 15 Haulers Intercepted . | . . . . Recyclers Shooed . | . . . . Parts Field Recycled . | . . . . Retrieved Matter . | . . . . Parts Self-Destructed . | . . . . Prevented . | . . . . Kills | -11 -10 -9 -9 ------- Run | Scr Mat Mat Sto Combat Hostiles Destroyed 13 | . . 7 6 Guns 13 | . . 7 6 Classes Destroyed 6 | . . 4 2 Worker 1 | . . . 1 Operator 1 | . . . 1 Swarmer 2 | . . 2 . Grunt 7 | . . 3 4 Brawler 1 | . . 1 . Sentry 3 | . . 1 2 Best Kill Streak 6 | . . 6 3 Combat Bots Only 6 | . . 6 3 Max Kills in Single Turn 2 | . . 1 2 Gunslinging . | . . . . Exploded . | . . . . Melee . | . . . . Uniques/NPCs Destroyed . | . . . . Combat | -11 -10 -9 -9 -------- Run | Scr Mat Mat Sto Damage Taken 1396 | 10 3 446 937 Core 413 | 10 . 119 284 Absorbed by Shields . | . . . . Core Remaining (%) 96 | 96 96 . . Volleys Fired 49 | . 4 20 25 Largest 2 | . 2 2 2 Hottest 100 | . 100 100 100 Shots Fired 82 | . 8 40 34 Gun 82 | . 8 40 34 Cannon . | . . . . Launcher . | . . . . Special . | . . . . Kinetic 20 | . . 4 16 Thermal 62 | . 8 36 18 Explosive . | . . . . Electromagnetic . | . . . . Robot Hit Streak 14 | . 3 10 14 Robot Miss Streak 2 | . 2 2 1 Penetration Max . | . . . . Secondary Targets 2 | . . 2 . Max Gunslinging Chain 1 | . . 1 . Shots Hit Robots 67 | . 5 31 31 Core Hits 24 | . . 11 13 Critical Kills . | . . . . Critical Parts Destroyed . | . . . . Critical Strikes 6 | . . 4 2 Burn 6 | . . 4 2 Melee Attacks . | . . . . Impact . | . . . . Slashing . | . . . . Piercing . | . . . . Sneak Attacks . | . . . . Combat Hostiles . | . . . . Follow-up Attacks . | . . . . Damage Inflicted 915 | . 70 426 419 Guns 906 | . 63 426 417 Cannons . | . . . . Explosions . | . . . . Melee . | . . . . Ramming 9 | . 7 . 2 Kinetic 251 | . . 48 203 Thermal 655 | . 63 378 214 Explosive . | . . . . Electromagnetic . | . . . . Impact . | . . . . Slashing . | . . . . Piercing . | . . . . Highest Corruption . | . . . . Average Corruption . | . . . . Corruption Purged . | . . . . Corruption Blocked . | . . . . Overload Shots . | . . . . Overflow Damage . | . . . . Projectiles . | . . . . Explosions . | . . . . Melee . | . . . . Knockbacks . | . . . . Impact . | . . . . Kinetic . | . . . . Secondary . | . . . . Self-Inflicted Damage 3 | . 3 . . Shots . | . . . . Rammed 3 | 1 1 . 1 Targets Rammed 3 | 1 1 . 1 Kicked . | . . . . Crushed . | . . . . Highest Temperature 351 | . 78 351 198 Average Temperature 153 | . 34 217 84 Received Heat Transfer 513 | . . 189 324 Effects 1 | . . 1 . Energy Bleed 1 | . . 1 . Siege Activations . | . . . . Robots Corrupted . | . . . . Combat Hostiles . | . . . . Parts Fried . | . . . . Impact Corruptions . | . . . . Robots Melted . | . . . . Combat Hostiles . | . . . . Parts Melted 8 | . . 5 3 Heat Transferred 2368 | . 185 1406 777 Parts Sabotaged . | . . . . Parts Stolen . | . . . . Parts Stripped . | . . . . Power Chain Reactions . | . . . . Missiles Intercepted . | . . . . Alert | -11 -10 -9 -9 ------- Run | Scr Mat Mat Sto Peak Influence 191 | . 30 185 191 Initial 66 | . . 10 66 Average 71 | . 9 112 120 Maximum Alert Level . | . . . . Low Security (%) 100 | 100 100 100 100 Level 1 . | . . . . Level 2 . | . . . . Level 3 . | . . . . Level 4 . | . . . . Level 5 . | . . . . High Security . | . . . . Max Security . | . . . . Squads Dispatched 2 | . . 1 1 Investigation 1 | . . . 1 Extermination . | . . . . Reinforcement 1 | . . 1 . Assault . | . . . . Garrison . | . . . . Intercept . | . . . . Searches Triggered . | . . . . Construction Impeded . | . . . . Haulers Reinforced . | . . . . Active Scanning Responses . | . . . . Cargo Convoy Interrupts . | . . . . Stealth | -11 -10 -9 -9 --------- Run | Scr Mat Mat Sto Distress Signals 1 | . . . 1 Communications Jammed . | . . . . Distress Signals . | . . . . Times Spotted 29 | . 2 9 18 Peak Tracking Total 10 | . 1 6 10 Tactical Retreats . | . . . . Traps | -11 -10 -9 -9 ------- Run | Scr Mat Mat Sto Traps Triggered 1 | . . . 1 Indirectly . | . . . . Trap Hack Attempts . | . . . . Triggered . | . . . . Disarmed . | . . . . Reprogrammed . | . . . . Reused . | . . . . Traps Extracted . | . . . . Installed . | . . . . Triggered . | . . . . Machines | -11 -10 -9 -9 ---------- Run | Scr Mat Mat Sto Machines Disabled . | . . . . Max in Single Turn . | . . . . Machines Sabotaged . | . . . . Garrisons Compromised . | . . . . Overloaded Fab Kills . | . . . . Hacking | -11 -10 -9 -9 --------- Run | Scr Mat Mat Sto Machines Accessed 1 | . . . 1 Terminals . | . . . . Fabricators . | . . . . Repair Stations . | . . . . Recycling Units 1 | . . . 1 Scanalyzers . | . . . . Garrison Access . | . . . . Total Hacks 4 | . . . 4 Successful 4 | . . . 4 Failed . | . . . . Catastrophic . | . . . . Database Lockouts . | . . . . Manual . | . . . . Terminals . | . . . . Fabricators . | . . . . Repair Stations . | . . . . Recycling Units 4 | . . . 4 Scanalyzers . | . . . . Garrison Access . | . . . . Terminal Hacks . | . . . . Fabricator Hacks . | . . . . Repair Station Hacks . | . . . . Recycling Unit Hacks 4 | . . . 4 Recycle Component 2 | . . . 2 Process 1 | . . . 1 Report Inventory 1 | . . . 1 Scanalyzer . | . . . . Garrison Access Hacks . | . . . . Unauthorized Hacks . | . . . . Terminals . | . . . . Fabricators . | . . . . Repair Stations . | . . . . Recycling Units . | . . . . Scanalyzers . | . . . . Garrison Access . | . . . . Data Cores Recovered 1 | . . . 1 Used . | . . . . Hacking Detections 1 | . . . 1 Full Trace Events 1 | . . . 1 Feedback Events . | . . . . Feedback Blocked . | . . . . Robot Schematics Acquired . | . . . . Robots Built . | . . . . Authchips . | . . . . Time . | . . . . Total Robot Build Rating . | . . . . Part Schematics Acquired . | . . . . Parts Built . | . . . . Authchips . | . . . . Time . | . . . . Total Part Build Rating . | . . . . Parts Repaired . | . . . . Time . | . . . . Parts Recycled 2 | . . . 2 Recycled Matter 38 | . . . 38 Retrieved Matter . | . . . . Retrieved Components . | . . . . Parts Scanalyzed . | . . . . Part Schematics Acquired . | . . . . Parts Damaged . | . . . . Bothacking | -11 -10 -9 -9 ------------ Run | Scr Mat Mat Sto Used RIF Installer . | . . . . Robots Hacked . | . . . . Non-combat . | . . . . Combat . | . . . . Robot Hacks Applied . | . . . . Relay Couplers Released . | . . . . Fabnet Peak Effective % . | . . . . Robots Rewired . | . . . . Allies Hacked . | . . . . Hacks Repelled . | . . . . Allies | -11 -10 -9 -9 -------- Run | Scr Mat Mat Sto Total Allies . | . . . . Largest Group . | . . . . Highest-Rated Group . | . . . . Highest-Rated Ally . | . . . . Total Orders . | . . . . Ally Attacks . | . . . . Total Damage . | . . . . Kills . | . . . . Allies Corrupted . | . . . . Allies Melted . | . . . . Intel | -11 -10 -9 -9 ------- Run | Scr Mat Mat Sto Robot Analysis Total . | . . . . Derelict Logs Recovered . | . . . . Drone Launches . | . . . . Drone Recoveries . | . . . . Exploration | -11 -10 -9 -9 ------------- Run | Scr Mat Mat Sto Turns Passed 796 | 92 237 160 307 Spaces Moved 516 | 85 241 79 111 Core 5 | 1 . . 4 Treads 12 | . . . 12 Legs 14 | . . . 14 Wheels 485 | 84 241 79 81 Hover . | . . . . Flight . | . . . . Fastest Speed 50 | 50 90 105 130 Average Speed 121 | 90 90 120 212 Slowest Speed 800 | 100 105 145 800 Overloaded Moves . | . . . . Propulsion Burnouts . | . . . . Robots Hopped . | . . . . Cave-ins Triggered . | . . . . Exploration Rate (%) 14 | 4 26 11 18 Regions Visited 3 Branch Regions 1 Pre-discovered Areas . | . . . . Known Exits Taken . | . . . . Unknown Exits Taken 3 | 1 1 1 . Scrap Searched . | . . . . Spaces Dug . | . . . . Terrain Destroyed . | . . . . Melee . | . . . . Projectile . | . . . . AOE . | . . . . Terrain Rammed . | . . . . Walls Destroyed . | . . . . Machines Disabled . | . . . . Actions | -11 -10 -9 -9 --------- Run | Scr Mat Mat Sto Total 601 | 97 250 105 149 Wait . | . . . . Move 513 | 84 240 78 111 Hop . | . . . . Pick Up 8 | 6 2 . . Fast Attach 12 | 6 1 3 2 Attach 6 | . . . 6 Detach 4 | . . 2 2 Swap 2 | . 2 . . Drop 4 | . . 2 2 Fire 49 | . 4 20 25 Melee . | . . . . Ram 2 | 1 1 . . Kick . | . . . . Crush 1 | . . . 1 Escape Stasis . | . . . . Rewire . | . . . . Trap . | . . . . Miscellaneous . | . . . . Route ------- -11/Scrapyard -10/Materials -9/Materials -9/Storage History --------- Turn | Location | Event 33 | -11/Scrapyard | Discovered new exit (range 14) 93 | -11/Scrapyard | Entered Materials 303 | -10/Materials | Build established: Mutant 303 | -10/Materials | Discovered new exit (range 14) 330 | -10/Materials | Entered another Materials area 330 | -9/Materials | Evolved 2 slots: Power x2 357 | -9/Materials | Discovered new exit (range 16) 490 | -9/Materials | Entered Storage 593 | -9/Storage | Core integrity fell below 50% 726 | -9/Storage | Core integrity fell below 20% 797 | -9/Storage | Destroyed by S-10 Pest with Light Assault Rifle Last Messages --------------- 00720_ Acquired 19 matter. 00720_ K-01 Serf collects debris. 00723_ Slammed into K-01 Serf. 00724_ K-01 Serf collects debris. 00732_ G-34 Mercenary destroyed. 00736_ K-01 Serf collects debris. 00738_ G-34 Mercenary suffers critical hit (Burn). 00739_ G-34 Mercenary heat damages Heat Sink. 00740_ K-01 Serf collects debris. 00741_ K-01 Serf destroyed. 00741_ Aluminum Leg melted. 00741_ Ion Engine melted. 00741_ G-34 Mercenary destroyed. 00748_ Acquired Wheel. 00749_ Acquired 15 matter. 00752_ Acquired 1 matter. 00757_ R-06 Scavenger collects Ion Engine. 00782_ S-10 Pest destroyed. 00790_ Wheel destroyed. 00791_ Med. Laser destroyed. Map ----- +----------------------------------------------------+ | ???????????????????????????????????????? | | ???????????????????????????????????????? | | ???????????????????????????????????????? | | ???????????????????????????????????????? | | ???????????????????????????????????????? | | ???????????????????????????????????????? | | ???????????????????????????????????????? | | ???????????????????????????????????????? | | ???????????????????????????????????????? | | ???????????????????????????????????????? | | ???????????????????????????????????????? | | ???????????????????????????????????????? | | ???????????????????????????????????????? | | ???????????????????????????????????????? | | ???????????????????????????????????????? | | ???????????????????????????????????????? | | ????????????????^?????????""""?????????? | | ?????????????????????????? ??????????? | | ????????????????#???????##+##??????????? | | ???????########## #######[ ;??????????? | | ???? *%= #??????????? | | ???? %s #??? |?????? | | ???? Y s # "" ?? | | ????? + ""???? | | ????? s ss # ""???? | | ?????? s @ #??????????? | | ?????? ##+####### #??????????? | | ?????? ?????????# ####???????? | | ??????? ??????????# ## ########? | | ???????# ???????????# # % ## | | ???????? ????????????# # T# | | ???????? ????????????# u# #? | | ??????????#?????????????# %#% !!! #? | | ????????????????????????# %+*! !!! #? | | ????????????????????????# %#% !! #? | | ????????????????????????# #!* #? | | ????????????????????????# # #? | | ????????????????????????# ###########? | | ????????????????????????# #??#"""#???? | | ????????????????????????# ####"Y"####? | | ????????????????????????# # #? | | ????????????????????????# # """ """ #? | | ????????????????????????# # """ """ #? | | ????????????????????????# + """ """ #? | | ????????????????????????# # """ """ #? | | ????????????????????????# # """ """ #? | | ????????????????????????# # #? | | ????????????????????????# # #? | | ???????????########+##### ###########? | | ?????????? #???? | +----------------------------------------------------+ Best States ------------- Heat Dissipation 28 Energy Generation 12 Energy Capacity 265 Matter Stores 300 Matter Capacity 300 Sight Range 16 Terrain Scan Density 10 Resistance: KI 20 Resistance: TH 20 Resistance: EX 20 Resistance: EM 20 Resistance: I 20 Resistance: S 20 Resistance: P 20 Evasion (%) 42 Recoil Reduction 1 Offensive Hacking 10 Item Schematics ----------------- None Robot Schematics ------------------ None Fabricated ------------ Nothing Alien Tech Used ----------------- None Achievements -------------- None Challenges ------------ None Game ------ Seed TachyonMissileNukerbomber Manual? 0 Play Time 00:15:24 Cumulative 2.7 hours Start 2022.03.23 @ 00:13:32 End 2022.03.23 @ 00:30:05 Sessions 1 Manual Loads 0 Difficulty Adventurer Special Mode None Game No. 8 Rogue 7 Adventurer 1 Explorer 0 Win Type - Total 0 Types 0/0/0/0/0/0/0/0/0 Lore% 2 Gallery% 4 Achievement% 3 Wizard Run 0 Options --------- ASCII 0 Keyboard 1 Movement Numpad Keybinds 0 Fullscreen 2 Font 12/Terminus Map View 83x54 Tactical HUD 1 Map Filters NONE Filters NONE Steam 1 RUN: 698846ce-b612-4337-8e25-f7bb7463131c